[Event "37th ECCC 2022"]
[Site "Mayrhofen"]
[Date "2022.10.03"]
[Round "1.60"]
[White "Budima, Armend"]
[Black "Kobo, Ori"]
[Result "0-1"]
[ECO "B23"]
[WhiteElo "2153"]
[BlackElo "2544"]
[Annotator "TA"]
[PlyCount "110"]
[EventDate "2022.10.03"]
[EventType "team-tourn"]
[EventCountry "AUT"]
[SourceTitle "playchess.com"]
[Source "ChessBase"]
[SourceQuality "1"]
[TimeControl "40/5400+30:1800+30"]

{[%evp 10,110,4,-31,-40,-37,-30,-37,-28,-39,-32,-35,-30,-39,-19,-20,-8,-16,-11,-27,-23,-31,0,16,37,-13,0,0,0,0,0,0,0,0,0,-23,-25,-16,-16,-39,-33,-52,-31,-103,-74,-145,-74,-74,-73,-72,-72,-72,-72,-74,-72,-119,-114,-132,-137,-125,-116,-109,-105,-105,-105,-105,-105,-105,-105,-253,-229,-257,-261,-256,-208,-502,-342,-450,-216,-483,-479,-463,-441,-564,-486,-588,-594,-563,-516,-850,-935,-745,-587,-1033,-977,-29979,-29980,-29980,-29981,-29981,-29981,-29980,-29975]} 1. e4 {[%emt 0:00:04]} c5 {[%emt 0:00:17]} 2. Nc3 {[%emt 0:00:38]} Nc6 {[%emt 0:00:07]} 3. f4 {[%emt 0:00:03]} e6 {[%emt 0:00:28]} 4. Nf3 {[%emt 0:00:05]} d5 {[%emt 0:00:22][%cal Bd7d5,Bd5d4][%mdl 32]} 5. Bb5 {[%emt 0:00:05]} Nge7 {[%emt 0:00:19]} 6. Qe2 {[%emt 0:00:11]} d4 {[%emt 0:02:08] B23: Closed Sicilian: Lines without g3.} 7. Nb1 {[%emt 0:00:08]} a6 {[%emt 0:02:08]} 8. Bxc6+ {[%emt 0:00:05]} Nxc6 {[%emt 0:00:10] Black is slightly better.} 9. d3 {[%emt 0:00:03]} Be7 {[%emt 0:04:20]} 10. O-O {[%emt 0:02:53]} b5 {[%emt 0:01:53] [#]} 11. a3 $146 {[%emt 0:09:33]} ({Predecessor:} 11. Nbd2 Bb7 12. Rf2 Qb6 13. Nf1 h6 14. Ng3 O-O-O 15. a4 Nb4 16. f5 Bd6 17. axb5 axb5 {1-0 (36) Gazik,V (2502)-Denishev,M (2159) Chess.com INT 2020}) 11... O-O {[%emt 0:05:32]} 12. e5 {[%emt 0:16:26]} f5 {[%emt 0:08:52]} 13. exf6 $1 {[%emt 0:01:08]} Rxf6 {[%emt 0:00:08]} 14. Ng5 {[%emt 0:02:55] Qe4 is the strong threat.} Qd5 {[%emt 0:07:29]} 15. Qe4 {[%emt 0:07:07]} ({Reject} 15. Qh5 h6 16. c4 (16. Qe8+ $2 Rf8 $19) 16... bxc4 17. dxc4 Qd7 $17) 15... g6 {[%emt 0:05:52]} (15... Qxe4 $15 {should be considered.} 16. Nxe4 Rf8) 16. Nd2 $11 {[%emt 0:11:47]} Bd7 {[%emt 0:01:25]} 17. Qf3 {[%emt 0:03:15]} (17. Qe1 $14) 17... Qxf3 {[%emt 0:09:46]} (17... Rf5 {with more complications.} 18. Nde4 h6 19. g4 Rff8) 18. Ndxf3 {[%emt 0:00:07]} a5 {[%emt 0:02:15]} 19. Ne4 {[%emt 0:01:34] Pair of Knights!} Rff8 {[%emt 0:03:09]} 20. Bd2 {[%emt 0:01:41]} a4 {[%emt 0:02:30]} 21. Rae1 {[%emt 0:03:15]} h6 {[%emt 0:02:47]} 22. Ne5 {[%emt 0:02:41]} Nxe5 {[%emt 0:02:23]} 23. fxe5 {[%emt 0:00:07]} Kg7 {[%emt 0:00:15]} 24. Nf6 {[%emt 0:04:59]} Bc6 {[%emt 0:02:12]} 25. h4 {[%emt 0:00:05]} c4 {[%emt 0:07:41]} 26. Ng4 {[%emt 0:08:31]} ({Better is} 26. Ra1 $15) 26... g5 {[%emt 0:00:35]} ({Don't do} 26... Bxh4 27. Bxh6+ Kg8 28. Nf6+ Kh8 29. Re2 $16) 27. hxg5 {[%emt 0:04:39]} (27. Rf6 $142 Bxf6 28. exf6+ Rxf6 29. Nxf6 Kxf6 30. hxg5+ hxg5 31. Rf1+ Kg6 32. Bb4) 27... hxg5 {[%emt 0:00:20]} ({And not} 27... Bxg5 28. Bxg5 Rxf1+ 29. Rxf1 $11) (27... Rxf1+ $142 28. Rxf1 hxg5) 28. Rf6 $17 {[%emt 0:08:36]} Bxf6 {[%emt 0:03:38]} 29. exf6+ {[%emt 0:00:01][%mdl 64] Discovered Attack} Rxf6 {[%emt 0:01:58]} 30. Nxf6 {[%emt 0:00:37]} Kxf6 {[%emt 0:00:03][%mdl 4096] Endgame KRB-KRB} 31. Rf1+ {[%emt 0:00:08]} Kg6 {[%emt 0:00:26]} 32. Re1 {[%emt 0:00:14] [#]} (32. Bb4 $142) 32... Bd5 $1 {[%emt 0:01:18]} 33. Bb4 {[%emt 0:07:34]} Rc8 {[%emt 0:02:54]} 34. Re2 {[%emt 0:01:36]} Rc6 {[%emt 0:04:30]} 35. Kf2 {[%emt 0:01:35]} Kf5 {[%emt 0:03:21]} 36. Kg3 {[%emt 0:00:44]} cxd3 {[%emt 0:05:04]} 37. cxd3 {[%emt 0:00:01]} Rc1 {[%emt 0:02:01]} 38. Rf2+ {[%emt 0:00:52] [#]} Kg6 $1 {[%emt 0:00:04] Black is more active.} 39. Rd2 {[%emt 0:03:24] Against Rd1. Now White is beyond hope.} (39. Be7 $17) 39... Re1 $19 {[%emt 0:05:39]} 40. Kf2 {[%emt 0:00:30]} Re3 {[%emt 0:00:52]} 41. Bd6 {[%emt 0:06:04]} Kf5 {[%emt 0:05:27]} 42. Bf8 $2 {[%emt 0:05:43]} (42. Bh2 {was called for.}) 42... e5 {[%emt 0:05:50] And now ...g4 would win.} 43. Be7 {[%emt 0:14:41]} Ba2 {[%emt 0:08:46]} (43... g4 $142 44. Bh4 Kf4) 44. Rd1 $2 {[%emt 0:00:14]} (44. Bd6) 44... g4 {[%emt 0:04:42] aiming for ...g3+.} 45. Bh4 {[%emt 0:03:44] Prevents g3+.} Kf4 {[%emt 0:00:58] Against Bg3+} 46. g3+ {[%emt 0:01:12]} Kf5 {[%emt 0:00:02]} 47. Kg1 {[%emt 0:00:44]} Ke6 {[%emt 0:02:47]} 48. Kf2 {[%emt 0:00:25]} Kd6 {[%emt 0:00:58]} 49. Rd2 {[%emt 0:01:44]} (49. Bg5 $142 Rf3+ 50. Ke2) 49... Bb1 {[%emt 0:00:32]} 50. Bg5 {[%emt 0:00:28]} Rf3+ {[%emt 0:00:40]} 51. Kg2 {[%emt 0:00:31]} Bxd3 {[%emt 0:01:20] Hoping for ...Be4.} 52. Rf2 {[%emt 0:00:14]} Rxf2+ {[%emt 0:00:15] Black mates.} 53. Kxf2 {[%emt 0:00:02]} Kd5 {[%emt 0:00:29]} 54. Bf6 {[%emt 0:00:10]} e4 {[%emt 0:00:17][%cal Be5e4,Be4e3][%mdl 32]} 55. Bg5 {[%emt 0:01:00]} e3+ {[%emt 0:00:30] Weighted Error Value: White=0.56/Black=0.19 (very precise)} 0-1

[Event "37th ECCC 2022"]
[Site "Mayrhofen"]
[Date "2022.10.03"]
[Round "1.61"]
[White "Feller, Sebastien"]
[Black "Pechac, Jergus"]
[Result "1/2-1/2"]
[ECO "B90"]
[WhiteElo "2542"]
[BlackElo "2633"]
[Annotator "TA"]
[PlyCount "46"]
[EventDate "2022.10.03"]
[EventType "team-tourn"]
[EventCountry "AUT"]
[SourceTitle "playchess.com"]
[Source "ChessBase"]
[SourceQuality "1"]
[TimeControl "40/5400+30:1800+30"]

{[%evp 19,20,0,53]} 1. e4 {[%emt 0:00:02]} c5 {[%emt 0:00:38]} 2. Nf3 {[%emt 0:00:36]} d6 {[%emt 0:00:08]} 3. Nc3 {[%emt 0:04:00]} Nf6 {[%emt 0:00:12]} 4. d4 {[%emt 0:01:46]} cxd4 {[%emt 0:00:07]} 5. Nxd4 {[%emt 0:00:04]} a6 {[%emt 0:00:07]} 6. Be3 {[%emt 0:00:45]} Ng4 {[%emt 0:01:01]} 7. Bc1 {[%emt 0:01:36]} Nf6 {[%emt 0:02:41]} 8. Be3 {[%emt 0:10:48]} Ng4 {[%emt 0:00:22]} 9. Bc1 {[%emt 0:06:17]} Nf6 {[%emt 0:00:19]} 10. Be3 {[%emt 0:00:12]} Ng4 {[%emt 0:00:24] [#] 10...Nbd7 is the modern continuation.} {Predecessor:} 11. Bg5 $146 {B90: Sicilian Najdorf: Unusual White 6th moves, 6 Be3 Ng4 and 6 Be3 e5.} h6 12. Bh4 g5 13. Bg3 Bg7 14. h3 Ne5 15. Nf5 Bxf5 16. exf5 Nbc6 17. Nd5 e6 18. fxe6 fxe6 19. Ne3 Qa5+ 20. c3 Nf3+ 21. gxf3 Bxc3+ 22. bxc3 Qxc3+ 23. Qd2 Qxa1+ {½-½ (55) Dominguez Perez,L (2745)-Firouzja,A (2778) Saint Louis 2022} 1/2-1/2

[Event "37th ECCC 2022"]
[Site "Mayrhofen"]
[Date "2022.10.03"]
[Round "1.62"]
[White "Michalik, Peter"]
[Black "Bruch, Jochen"]
[Result "1-0"]
[ECO "A67"]
[WhiteElo "2558"]
[BlackElo "2176"]
[Annotator "TA"]
[PlyCount "51"]
[EventDate "2022.10.03"]
[EventType "team-tourn"]
[EventCountry "AUT"]
[SourceTitle "playchess.com"]
[Source "ChessBase"]
[SourceQuality "1"]
[TimeControl "40/5400+30:1800+30"]

{[%evp 22,51,83,86,174,164,177,160,156,141,137,137,196,172,233,246,314,247,898,901,905,902,936,939,925,925,892,875,2268,2136,6383,3159]} 1. d4 {[%emt 0:00:04]} Nf6 {[%emt 0:00:01]} 2. c4 {[%emt 0:00:07]} c5 {[%emt 0:00:02]} 3. d5 {[%emt 0:00:06]} e6 {[%emt 0:00:05]} 4. Nc3 {[%emt 0:00:07]} exd5 {[%emt 0:00:01]} 5. cxd5 {[%emt 0:00:07]} d6 {[%emt 0:00:09]} 6. e4 {[%emt 0:00:05]} g6 {[%emt 0:00:03]} 7. f4 {[%emt 0:00:15]} Bg7 {[%emt 0:01:05]} 8. Bb5+ {[%emt 0:00:08]} Nfd7 {[%emt 0:00:06]} 9. Be2 {[%emt 0:00:06]} O-O {[%emt 0:00:47]} 10. Nf3 {[%emt 0:00:30]} a6 {[%emt 0:01:27]} 11. a4 {[%emt 0:03:32]} Re8 {[%emt 0:04:16]} 12. O-O $1 {[%emt 0:00:09]} Nf6 {[%emt 0:00:46] A67: Modern Benoni: Taimanov Variation.} (12... Nf8 $16) 13. e5 $18 {[%emt 0:00:09]} (13. Qc2 Nbd7 14. Bd2 Rb8 15. Rae1 Qc7 16. Kh1 Nf8 17. e5 Bf5 18. Bd3 Bxd3 19. Qxd3 N6d7 20. e6 fxe6 21. dxe6 Rxe6 22. Ng5 Rxe1 23. Rxe1 h6 24. Nd5 Qd8 25. Ne7+ {1-0 (25) Michalik,P (2594)-Bruch,J (2187) Tornelo INT 2021}) 13... Nfd7 {[%emt 0:07:46][%cal Rd6e5]} 14. e6 {[%emt 0:04:53]} ({Don't play} 14. exd6 $6 Qf6 $14) 14... fxe6 {[%emt 0:07:05] White is clearly better.} 15. dxe6 {[%emt 0:00:44]} Nf6 {[%emt 0:04:45]} 16. f5 {[%emt 0:05:41] Bc4 is the strong threat. White is more active.} gxf5 {[%emt 0:02:34] [#]} (16... Nc6 $16 {might work better.}) 17. Ng5 $1 {[%emt 0:00:04] [#] Strongly threatening Bc4.} Nc6 $146 {[%emt 0:04:16] [#]} (17... Bxe6 $142 18. Nxe6 Rxe6) ({Predecessor:} 17... Bxe6 18. Nxe6 Rxe6 19. Bc4 d5 20. Nxd5 Kh8 21. Bg5 Re4 22. Qb3 Nc6 23. Qxb7 Na5 24. Qxg7+ Kxg7 25. Bxf6+ Qxf6 26. Nxf6 Rxc4 27. Rxf5 {1-0 (33) Mueller,L (2191)-Nilsen,M (1878) Caleta 2014}) 18. Bc4 $1 {[%emt 0:05:01] Hoping for e7+.} (18. Rxf5 Ne5) 18... Qe7 {[%emt 0:16:22]} 19. Bf4 {[%emt 0:02:30]} Nd4 $2 {[%emt 0:11:19] [#]} (19... d5) 20. Bxd6 $1 {[%emt 0:00:31][%mdl 512] White is clearly winning.} Qxd6 {[%emt 0:05:11]} 21. e7+ $1 {[%emt 0:02:14]} Be6 {[%emt 0:00:17]} 22. Bxe6+ {[%emt 0:00:06]} Qxe6 {[%emt 0:00:08]} 23. Nxe6 {[%emt 0:00:06]} Nxe6 {[%emt 0:00:07]} 24. Qd6 {[%emt 0:00:42]} Kf7 {[%emt 0:01:46]} 25. Rxf5 {[%emt 0:00:06] Threatening mate with Raf1.} Rxe7 {[%emt 0:02:00]} 26. Nd5 {[%emt 0:00:11] Black did not feel at home in the position after the opening.  Weighted Error Value: White=0.12 (very precise) /Black=0.53} 1-0

[Event "37th ECCC 2022"]
[Site "Mayrhofen"]
[Date "2022.10.03"]
[Round "1.63"]
[White "Gengler, Pierre"]
[Black "Prohaszka, Peter"]
[Result "0-1"]
[ECO "A00"]
[WhiteElo "2151"]
[BlackElo "2570"]
[Annotator "TA"]
[PlyCount "84"]
[EventDate "2022.10.03"]
[EventType "team-tourn"]
[EventCountry "AUT"]
[SourceTitle "playchess.com"]
[Source "ChessBase"]
[SourceQuality "1"]
[TimeControl "40/5400+30:1800+30"]

{[%evp 15,84,-16,-6,-32,-22,-43,-33,-50,-46,-55,-50,-41,-47,-108,-40,-116,-70,-147,-132,-159,-150,-256,-146,-151,-133,-158,-134,-134,-126,-138,-129,-175,-177,-177,-167,-194,-188,-202,-219,-206,-204,-362,-354,-354,-360,-378,-377,-318,-281,-272,-247,-522,-514,-491,-491,-597,-556,-1190,-1145,-12842,-947,-911,-899,-12835,-12835,-12839,-1407,-887,-972,-12841,-12842]} 1. g3 {[%emt 0:00:03]} d5 {[%emt 0:00:06]} 2. Bg2 {[%emt 0:00:03]} e5 {[%emt 0:00:08]} 3. d3 {[%emt 0:00:04]} Bd6 {[%emt 0:00:28]} 4. Nd2 {[%emt 0:00:07]} Nf6 {[%emt 0:00:37]} 5. e4 {[%emt 0:00:04]} c6 {[%emt 0:03:43]} 6. Ngf3 {[%emt 0:00:08]} O-O {[%emt 0:00:24]} 7. O-O {[%emt 0:00:05]} Re8 {[%emt 0:00:28]} 8. Re1 {[%emt 0:00:49]} Nbd7 {[%emt 0:04:49]} 9. Nf1 {[%emt 0:03:33] B10: Caro-Kann: 2 d3 and 2 c4.} a5 {[%emt 0:05:45] [#]} 10. Bg5 $146 {[%emt 0:01:11]} ({Predecessor:} 10. c3 a4 11. Qc2 b5 12. Ne3 Bb7 13. Nf5 Bf8 14. Bg5 Qc7 15. Rad1 h6 16. Bc1 c5 {1-0 (42) Karthikeyan,M (2606)-Ter Sahakyan,S (2640) Chess.com INT 2020}) 10... h6 {[%emt 0:11:53]} 11. Bd2 {[%emt 0:00:17] Black is slightly better.} dxe4 {[%emt 0:12:54]} 12. dxe4 {[%emt 0:00:38][%cal Od2h6]} Nc5 {[%emt 0:00:44]} 13. Nh4 {[%emt 0:03:05]} Bf8 {[%emt 0:00:29]} 14. a3 {[%emt 0:02:25] [#]} (14. Nf5 $15) 14... Bg4 {[%emt 0:13:42]} (14... Qd4 $1 $17 15. Bc3 Qxd1 16. Raxd1 Na4) 15. Bf3 {[%emt 0:00:27]} (15. Qc1 $15) 15... Bh3 {[%emt 0:02:15]} (15... h5 $17 16. Be3 Bxf3 17. Qxf3 Ncxe4) 16. Bg2 {[%emt 0:00:21]} (16. Qe2 $15) 16... Bxg2 $17 {[%emt 0:00:29]} 17. Kxg2 {[%emt 0:03:46]} Ncxe4 {[%emt 0:00:59]} 18. Nf3 {[%emt 0:03:11]} (18. Be3 $17) 18... Nxd2 {[%emt 0:06:04]} ({Black should try} 18... Qb6 $19 19. Ne3 Nxd2 20. Nxd2 Qxb2) 19. N3xd2 {[%emt 0:00:08]} Qd5+ {[%emt 0:00:48]} 20. Nf3 {[%emt 0:00:37]} e4 {[%emt 0:06:16] Black has more active pieces.} 21. Qxd5 {[%emt 0:00:47]} Nxd5 {[%emt 0:00:06]} 22. N3d2 {[%emt 0:03:01]} f5 {[%emt 0:00:36]} 23. g4 {[%emt 0:07:39]} (23. a4 $17 {was necessary.}) 23... Nf4+ {[%emt 0:03:35]} 24. Kh1 {[%emt 0:01:30]} fxg4 {[%emt 0:00:25]} 25. Nxe4 {[%emt 0:05:49]} Re5 {[%emt 0:01:12] Strongly threatening ...Rae8.} 26. Neg3 {[%emt 0:00:28]} Rae8 {[%emt 0:00:40]} 27. Rxe5 {[%emt 0:00:49]} Rxe5 {[%emt 0:00:02]} 28. Rd1 $2 {[%emt 0:02:08]} (28. Ne3) 28... Bc5 $19 {[%emt 0:02:18]} 29. Rd8+ {[%emt 0:08:54]} Kh7 {[%emt 0:01:08]} 30. Rd7 {[%emt 0:02:36]} Bxf2 {[%emt 0:02:53]} 31. Rf7 {[%emt 0:00:27]} Bxg3 {[%emt 0:01:26]} 32. hxg3 {[%emt 0:00:05][%mdl 4096] Endgame KRN-KRN} Nh3 {[%emt 0:00:43]} 33. b4 $2 {[%emt 0:07:39]} (33. Rxb7 Re1 34. Kg2) 33... axb4 {[%emt 0:02:13] Black is clearly winning.} 34. axb4 {[%emt 0:00:21]} b5 {[%emt 0:01:10]} 35. Nh2 {[%emt 0:03:01]} h5 {[%emt 0:01:45] [#] And now ...Re1+ would win.} 36. Rf1 {[%emt 0:04:18] Against Re1} Re2 {[%emt 0:00:48] Hoping for ...h4.} 37. Rc1 {[%emt 0:00:26]} Nf2+ {[%emt 0:03:55]} (37... h4 $142 38. Nf1 Nf2+ 39. Kg1 h3) 38. Kg1 {[%emt 0:00:11]} Ne4 {[%emt 0:00:20]} 39. Nf1 {[%emt 0:00:14]} Ng5 {[%emt 0:00:09]} 40. Nh2 {[%emt 0:00:47]} Nf3+ {[%emt 0:01:59]} (40... h4 $142 41. Nxg4 hxg3) 41. Nxf3 {[%emt 0:30:08]} gxf3 {[%emt 0:30:03][%cal Bg4f3,Bf3f2][%mdl 32]} 42. c4 {[%emt 0:00:27]} f2+ {[%emt 0:00:47] Weighted Error Value: White=0.98/Black=0.28 (precise)} 0-1

[Event "37th ECCC 2022"]
[Site "Mayrhofen"]
[Date "2022.10.03"]
[Round "1.64"]
[White "Czebe, Attila"]
[Black "Cahen, Alexis"]
[Result "1-0"]
[ECO "B54"]
[WhiteElo "2366"]
[BlackElo "2095"]
[Annotator "TA"]
[PlyCount "103"]
[EventDate "2022.10.03"]
[EventType "team-tourn"]
[EventCountry "AUT"]
[SourceTitle "playchess.com"]
[Source "ChessBase"]
[SourceQuality "1"]
[TimeControl "40/5400+30:1800+30"]

{[%evp 15,103,27,27,35,49,41,85,35,71,60,56,54,42,-21,74,62,112,119,131,128,126,100,106,76,71,77,84,95,185,56,101,104,107,108,108,108,110,111,78,56,355,339,337,351,343,262,265,203,212,180,239,233,226,231,413,177,182,122,301,143,497,488,536,299,1021,1040,957,976,1066,1070,1056,969,934,869,5918,1613,1295,943,5485,979,6104,6110,29975,29974,29972,29975,29973,29965,29991,29992]} 1. e4 {[%emt 0:00:20]} c5 {[%emt 0:01:13]} 2. Nf3 {[%emt 0:00:48]} d6 {[%emt 0:00:24]} 3. d4 {[%emt 0:01:02]} cxd4 {[%emt 0:00:08]} 4. Nxd4 {[%emt 0:00:06]} Nf6 {[%emt 0:00:42]} 5. f3 {[%emt 0:00:12]} g6 {[%emt 0:01:45]} 6. c4 {[%emt 0:00:11]} Nc6 {[%emt 0:01:09]} 7. Be3 {[%emt 0:01:05]} Bg7 {[%emt 0:01:22]} 8. Qd2 {[%emt 0:03:06]} O-O {[%emt 0:07:29]} 9. Be2 {[%emt 0:00:05] B55: Sicilian: 2...d6 3 d4 cxd4 4 Nxd4 Nf6 5 f3.} Ne8 {[%emt 0:06:39]} 10. Nc3 {[%emt 0:03:14]} Nc7 {[%emt 0:03:58]} 11. O-O {[%emt 0:03:43]} (11. h4 $16) 11... Ne6 {[%emt 0:07:01]} 12. Nxe6 {[%emt 0:00:44]} Bxe6 {[%emt 0:06:59] [#]} 13. Rfd1 $146 {[%emt 0:02:44]} ({Predecessor:} 13. Nd5 b6 14. Rac1 Rc8 15. f4 Qd7 16. b4 Rfd8 17. a3 Rf8 18. Kh1 f5 19. Bf3 {1-0 (53) Krush,I (2431)-Vo,T (2380) Riadh 2017}) 13... Qa5 {[%emt 0:04:50]} 14. Rab1 {[%emt 0:03:25]} (14. Rac1 $14) 14... Rfc8 {[%emt 0:11:08]} (14... Bxc3 $11 15. bxc3 (15. Qxc3 Qxc3 16. bxc3 b6 $15) 15... b6) 15. b4 $16 {[%emt 0:01:12]} Qe5 {[%emt 0:02:38]} (15... Nxb4 16. Nd5 Nxd5 17. Qxa5 $16) (15... Bxc3 $14 16. Qxc3 Qc7) 16. Nd5 {[%emt 0:10:05]} Bxd5 {[%emt 0:01:46]} 17. exd5 {[%emt 0:00:12]} Nb8 {[%emt 0:01:52]} 18. Rb3 {[%emt 0:00:51]} Qf5 {[%emt 0:05:33]} 19. Bd3 {[%emt 0:16:13]} Qd7 {[%emt 0:00:36]} 20. Bf1 {[%emt 0:00:13]} b6 {[%emt 0:04:01]} 21. Re1 {[%emt 0:01:08]} Re8 {[%emt 0:04:39]} (21... a5 $16 {keeps fighting.}) 22. Bd4 {[%emt 0:01:42]} ({Better is} 22. c5 $18) 22... e5 {[%emt 0:04:43]} 23. dxe6 {[%emt 0:00:08]} Bxd4+ {[%emt 0:03:53]} 24. Qxd4 {[%emt 0:00:05]} Rxe6 {[%emt 0:02:44]} 25. Rxe6 {[%emt 0:00:28]} fxe6 {[%emt 0:01:01]} 26. Qe4 {[%emt 0:21:37] White is much more active. The black rooks are badly placed.} d5 {[%emt 0:03:23]} 27. Qg4 $36 {[%emt 0:08:10][%mdl 2048] White has good play.} d4 {[%emt 0:04:11][%mdl 8192] [#] Inhibits Re3.} ({Black should try} 27... Nc6 $14) 28. Qe4 $1 $18 {[%emt 0:00:34]} Qc6 {[%emt 0:01:06]} 29. Bd3 {[%emt 0:00:18] aiming for b5.} (29. Qxd4 Nd7 30. f4 Re8 $18) 29... a5 {[%emt 0:02:47]} 30. Qxd4 {[%emt 0:07:40]} Qd7 {[%emt 0:01:55]} 31. Qxb6 {[%emt 0:01:18]} axb4 {[%emt 0:01:17]} 32. Bf1 {[%emt 0:00:03] [#] Rd3 is the strong threat.} (32. Qxb4 $6 Qd4+ 33. Kf1 Nd7) 32... Nc6 {[%emt 0:01:35]} (32... Kf7 $142 33. Rxb4 (33. Qxb4 Nc6 $16) 33... Nc6) 33. Rd3 {[%emt 0:00:39]} Qc8 {[%emt 0:02:02]} 34. Rd6 {[%emt 0:04:39]} Ra6 $2 {[%emt 0:00:10]} (34... Ne5 {was called for.} 35. Rxe6 Nd7 36. Qxb4 Rxa2) 35. Qe3 {[%emt 0:00:36]} (35. Qb5 $142) 35... Nd8 {[%emt 0:00:49]} 36. Rd2 {[%emt 0:05:34]} ({White should play} 36. Qd4 $18 Nf7 37. Rxa6 (37. Rd7 Rxa2 38. h4 Qc6 $11) 37... Qxa6 38. c5 Qxa2 39. Qxb4) 36... Qa8 {[%emt 0:00:30]} (36... Nb7 $16) 37. Qf2 {[%emt 0:03:44]} (37. c5 $18 Ra3 38. Qe4) 37... Nc6 $2 {[%emt 0:00:29][%mdl 8192]} (37... Nb7 $16 {is more resistant.} 38. Rb2 (38. c5 Rc6 $16) 38... Qa7 39. Qxa7 (39. Rxb4 Rxa2 40. Qxa7 Rxa7 $16) 39... Rxa7 40. Rxb4 Kf7) 38. c5 {[%emt 0:00:31]} Ra5 {[%emt 0:00:25]} 39. Bc4 {[%emt 0:00:05]} Qf8 $2 {[%emt 0:00:37]} (39... Qa7 40. Bxe6+ Kf8) 40. Bxe6+ {[%emt 0:00:43]} Kh8 {[%emt 0:00:30]} 41. Rd6 {[%emt 0:30:23]} Qf6 {[%emt 0:06:18]} 42. Rxc6 {[%emt 0:00:00] White threatens Rc8+ and mate.} Qa1+ {[%emt 0:02:49]} 43. Qf1 {[%emt 0:00:00][%cal Rf1a1]} Qd4+ {[%emt 0:00:45]} 44. Kh1 {[%emt 0:00:00] Hoping for Rc8+.} Ra3 {[%emt 0:01:41]} 45. Bb3 {[%emt 0:00:00] Rc8+ would kill now.} Ra8 {[%emt 0:00:57] Prevents Rc8+.} 46. Rd6 {[%emt 0:00:00]} Qc3 {[%emt 0:01:27]} 47. Rd1 {[%emt 0:00:00][%cal Bd6d1,Bd1c1,Bc1c4][%mdl 32]} Re8 {[%emt 0:00:21]} 48. Rc1 {[%emt 0:00:00]} Qd2 {[%emt 0:00:48]} 49. c6 {[%emt 0:00:00][%cal Bc5c6,Bc6c7][%mdl 32] White mates.} Kg7 {[%emt 0:01:22]} 50. c7 {[%emt 0:00:00]} Qd7 {[%emt 0:00:57]} 51. Rc4 {[%emt 0:00:00]} Qd3 {[%emt 0:00:28]} 52. Qa1+ {[%emt 0:00:00] Weighted Error Value: White=0.41/Black=0.56} (52. Qxd3 $2 {is a self mate.} Re1+) 1-0